bitfinex/quotes_BTCUSD_20240730
["timestamp","ask_amount","ask_price","bid_price","bid_amount"]
[1722335101414,0.289272,66648.0,66647.0,0.1521781]
[1722335101586,0.13923,66648.0,66647.0,0.1521781]
[1722335101814,0.00083,66648.0,66647.0,0.6023101]
[1722335102147,0.00083,66648.0,66647.0,0.9023981]
[1722335104466,0.00083,66648.0,66647.0,0.77768079]
[1722335104666,0.00083,66648.0,66647.0,0.90239552]
[1722335107029,0.00083,66648.0,66647.0,1.20248352]
[1722335107564,0.00083,66648.0,66647.0,1.52390656]
[1722335107765,0.00083,66648.0,66647.0,1.52389123]
[1722335108566,0.00083,66648.0,66647.0,1.52189123]
[1722335108992,0.00083,66648.0,66647.0,1.53589123]
[1722335109751,0.00083,66648.0,66647.0,1.45529123]
[1722335110154,0.00083,66648.0,66647.0,1.46929123]
[1722335110155,0.02437199,66648.0,66647.0,1.46929123]
[1722335111299,0.00083,66648.0,66647.0,1.46929123]
[1722335113029,0.02437229,66648.0,66647.0,1.46929123]
[1722335113430,0.00083,66648.0,66647.0,1.46929123]
[1722335113807,0.00083,66648.0,66647.0,1.57099123]
[1722335114012,0.00077,66648.0,66647.0,3.10322072]
[1722335114181,6.001e-05,66648.0,66647.0,3.10322072]
[1722335114336,0.00083,66651.0,66650.0,1.554127]
[1722335114538,0.00083,66651.0,66650.0,2.96207916]
[1722335115752,0.00083,66651.0,66650.0,3.42035416]
[1722335116212,0.00083,66651.0,66650.0,3.43435416]
[1722335116417,0.00083,66651.0,66650.0,3.54662596]
[1722335116418,0.02436584,66651.0,66650.0,3.54662596]
[1722335116859,0.00083,66651.0,66650.0,3.54662596]
[1722335117235,0.00083,66651.0,66650.0,3.56058957]
[1722335117432,0.02436592,66651.0,66650.0,3.13668493]
[1722335117641,0.00083,66651.0,66650.0,3.56056875]
[1722335118246,0.00083,66651.0,66650.0,3.53809756]
[1722335119862,0.0015542,66668.0,66667.0,1.049993]
[1722335120061,0.06113,66671.0,66670.0,0.449977]
[1722335120237,0.06113,66671.0,66670.0,1.20058004]
[1722335120657,0.08466437,66671.0,66670.0,1.2198388]
[1722335121457,0.08466437,66671.0,66670.0,1.2318388]
[1722335121458,0.06113,66671.0,66670.0,1.2318388]
[1722335121845,0.00083,66671.0,66670.0,1.2318388]
[1722335122041,0.00083,66671.0,66670.0,1.35649341]
[1722335122299,0.00083,66671.0,66670.0,1.5318238]
[1722335122500,0.00083,66671.0,66670.0,1.65647795]
[1722335122700,0.00083,66671.0,66670.0,1.66847795]
[1722335124282,0.00083,66671.0,66670.0,1.66847069]
[1722335124709,0.00083,66671.0,66670.0,1.5438238]
[1722335124908,0.00083,66671.0,66670.0,1.5739138]
[1722335124909,0.02436317,66671.0,66670.0,1.5739138]
[1722335125145,0.02436317,66671.0,66670.0,1.69856594]
[1722335126056,0.02436317,66671.0,66670.0,1.68656594]
[1722335126235,0.02436317,66671.0,66670.0,1.68856594]
[1722335126451,0.00083,66671.0,66670.0,1.68856594]
[1722335126598,0.00083,66671.0,66670.0,1.70256594]
[1722335127425,0.00083,66671.0,66670.0,1.70256017]
[1722335128647,0.00083,66671.0,66670.0,1.84446017]
[1722335129684,0.02436303,66671.0,66670.0,1.84446017]
[1722335130084,0.00083,66671.0,66670.0,1.84446017]
[1722335130404,0.00083,66671.0,66670.0,1.70256017]
[1722335130766,0.00083,66671.0,66670.0,1.5779138]
[1722335130945,0.00083,66671.0,66670.0,1.70256894]
[1722335133083,0.02436303,66671.0,66670.0,1.70256894]
[1722335134326,0.02436303,66671.0,66670.0,1.70256076]
[1722335134728,0.02436303,66671.0,66670.0,1.6535138]
[1722335134939,0.02436303,66671.0,66670.0,1.84464948]
[1722335135139,0.02436303,66671.0,66670.0,2.27463448]
[1722335135273,0.00083,66671.0,66670.0,2.27463448]
[1722335135569,0.00083,66671.0,66670.0,2.25463448]
[1722335135740,0.00083,66671.0,66670.0,2.27463448]
[1722335137273,0.00083,66671.0,66670.0,2.51419623]
[1722335139213,0.00083,66671.0,66670.0,2.46159905]
[1722335139214,0.00078,66671.0,66670.0,2.46159905]
[1722335140183,0.02431158,66671.0,66670.0,2.46159905]
[1722335140591,0.00078,66671.0,66670.0,2.46159905]
[1722335140971,0.00078,66671.0,66670.0,2.46359418]
[1722335141432,1e-08,66671.0,66670.0,2.46359418]
[1722335142214,1e-08,66671.0,66670.0,2.44959418]
[1722335142416,1e-08,66671.0,66670.0,2.43559418]
[1722335142632,1e-08,66671.0,66670.0,2.44959418]
[1722335143299,0.02353134,66671.0,66670.0,2.44959418]
[1722335143590,1e-08,66671.0,66670.0,2.44959418]
[1722335143995,1e-08,66671.0,66670.0,2.46357856]
[1722335144172,1e-08,66671.0,66670.0,2.44157856]
[1722335144373,1e-08,66671.0,66670.0,2.14260373]
[1722335144571,1e-08,66671.0,66670.0,1.99940373]
[1722335144787,1e-08,66671.0,66670.0,1.99940564]
[1722335146680,1e-08,66671.0,66670.0,1.99941373]
[1722335146876,0.02353173,66671.0,66670.0,1.99941373]
[1722335147521,0.02353173,66671.0,66670.0,1.68780318]
[1722335147659,0.02353173,66671.0,66670.0,1.99941373]
[1722335150095,1e-08,66671.0,66670.0,1.99941373]
[1722335150306,1e-08,66671.0,66670.0,2.09471373]
[1722335150531,1e-08,66671.0,66670.0,2.22647297]
[1722335151103,1e-08,66671.0,66670.0,2.56129059]
[1722335151333,1e-08,66671.0,66670.0,2.583677]
[1722335151825,1e-08,66671.0,66670.0,2.883662]
[1722335152077,1e-08,66671.0,66670.0,2.79411635]
[1722335152714,0.02353142,66671.0,66670.0,2.79411635]
[1722335153251,1e-08,66671.0,66670.0,2.79411635]
[1722335154271,1e-08,66671.0,66670.0,2.79408425]
[1722335154689,1e-08,66671.0,66670.0,2.4825058]
[1722335154888,1e-08,66671.0,66670.0,2.79408452]
[1722335155097,0.0015542,66691.0,66670.0,2.79408452]
[1722335155098,0.06030001,66686.0,66685.0,1.079799]
[1722335155304,0.06030001,66686.0,66685.0,1.20443049]
[1722335155513,0.06030001,66686.0,66685.0,1.2233761]
[1722335156687,0.06030001,66686.0,66685.0,1.97384314]
[1722335156688,0.02353,66686.0,66685.0,1.97384314]
[1722335156932,0.02353,66686.0,66685.0,1.86085981]
[1722335157052,0.02353,66686.0,66685.0,2.03182985]
[1722335157253,0.38077443,66701.0,66700.0,0.779715]
[1722335157478,0.01816,66706.0,66705.0,0.44974]
[1722335157705,0.01816,66706.0,66705.0,0.87416952]
[1722335158080,0.16326,66706.0,66705.0,0.89308884]
[1722335158312,0.16326,66706.0,66705.0,0.59326184]
[1722335158552,0.16326,66706.0,66705.0,0.29343484]
[1722335158684,0.16326,66706.0,66705.0,0.16883232]
[1722335159026,0.16326,66706.0,66705.0,0.01891932]
[1722335159393,0.16326,66706.0,66705.0,0.16883232]
[1722335160185,0.16326,66706.0,66705.0,0.01891932]
[1722335160393,0.16326,66706.0,66705.0,0.02891932]
[1722335160590,0.18678637,66706.0,66705.0,0.03991932]
[1722335160829,0.16326,66706.0,66705.0,0.03991932]
[1722335161005,0.16326,66706.0,66705.0,0.18983232]
[1722335161544,0.16326,66706.0,66705.0,0.03991932]
[1722335161884,0.313171,66706.0,66705.0,0.03991932]
[1722335162301,0.912817,66706.0,66705.0,0.03991932]
[1722335162784,1.21264,66706.0,66705.0,0.021]
[1722335162966,1.31854846,66706.0,66705.0,0.021]
[1722335163202,1.61837146,66706.0,66705.0,0.021]
[1722335163778,1.61837146,66706.0,66705.0,0.011]
[1722335163955,0.299828,66705.0,66689.0,0.03009]
[1722335164156,0.149943,66692.0,66689.0,0.03009]
[1722335164359,0.149943,66692.0,66691.0,0.03009]
[1722335164685,0.29987,66696.0,66691.0,0.03009]
[1722335165015,0.0662,66692.0,66691.0,0.04900305]
[1722335165162,0.06555606,66692.0,66691.0,0.19894805]
[1722335165366,0.06555606,66692.0,66691.0,0.79872805]
[1722335165569,0.06555606,66692.0,66691.0,0.49883805]
[1722335165791,0.06555606,66692.0,66691.0,0.04900305]
[1722335166000,0.14705606,66692.0,66691.0,0.04900305]
[1722335166646,0.14705606,66692.0,66691.0,0.19894805]
[1722335166830,0.14705606,66692.0,66691.0,0.22594805]
[1722335168036,0.14705606,66692.0,66691.0,0.07600305]
[1722335168266,0.14705606,66692.0,66691.0,0.22594805]
[1722335168465,0.14705606,66692.0,66691.0,0.07600305]
[1722335168665,0.17058476,66692.0,66691.0,0.22594805]
[1722335168991,0.17058476,66692.0,66691.0,0.82572805]
[1722335169208,0.08908476,66692.0,66691.0,0.9503648]
[1722335169625,0.06555606,66692.0,66691.0,0.9503648]
[1722335169972,0.06555606,66692.0,66691.0,0.6504748]
[1722335170595,0.06555606,66692.0,66691.0,0.2006398]
[1722335170817,0.06555606,66692.0,66691.0,0.07600305]
[1722335170818,0.14465606,66692.0,66691.0,0.07600305]
[1722335170999,0.14465606,66692.0,66691.0,0.22594805]
[1722335171399,0.14465606,66692.0,66691.0,0.52583805]
[1722335171748,0.14465606,66692.0,66691.0,0.07600305]
[1722335172239,0.14465606,66692.0,66691.0,0.22594805]
[1722335172597,0.14465606,66692.0,66691.0,0.07600305]
[1722335172912,0.16818452,66692.0,66691.0,0.22594805]
[1722335173120,0.14465606,66692.0,66691.0,0.07600305]
[1722335174549,0.14613292,66692.0,66691.0,0.07600305]
[1722335174717,0.14465606,66692.0,66691.0,0.07600305]
[1722335175155,0.14465606,66692.0,66691.0,0.52583805]
[1722335175377,0.14465606,66692.0,66691.0,0.22594805]
[1722335175783,0.14465606,66692.0,66691.0,0.20063215]
[1722335175994,0.14595461,66692.0,66691.0,0.07600305]
[1722335176166,0.14465606,66692.0,66691.0,0.22594805]
[1722335176363,0.16818443,66692.0,66691.0,0.22594805]
[1722335176833,0.16818443,66692.0,66691.0,0.35057736]
[1722335176983,0.14465606,66692.0,66691.0,0.35057736]
[1722335177534,0.14465606,66692.0,66691.0,0.20063236]
[1722335177682,0.59448506,66692.0,66691.0,0.20063236]
[1722335178030,0.14465606,66692.0,66691.0,0.06653964]
[1722335180164,0.16818439,66692.0,66691.0,0.06653964]
[1722335180364,0.16818439,66692.0,66691.0,0.51637464]
[1722335180611,0.14465606,66692.0,66691.0,0.51637464]
[1722335181390,0.14465606,66692.0,66691.0,0.64100536]
[1722335181912,0.0015542,66695.0,66694.0,0.149938]
[1722335182095,0.1384,66695.0,66694.0,0.449815]
[1722335182254,0.0015542,66698.0,66697.0,0.149931]
[1722335182455,0.0015174,66698.0,66697.0,0.149931]
[1722335182657,0.0015174,66698.0,66697.0,0.15935673]
[1722335183063,0.062,66699.0,66697.0,0.15935673]
[1722335183264,0.00081587,66698.0,66697.0,0.45921973]
[1722335183680,0.062,66699.0,66698.0,0.149929]
[1722335184074,0.062,66699.0,66698.0,0.1593255]
[1722335184075,0.08552698,66699.0,66698.0,0.1593255]
[1722335185245,0.61740798,66699.0,66698.0,0.0093965]
[1722335185466,0.61740798,66699.0,66681.0,0.19438828]
[1722335185467,0.449788,66698.0,66681.0,0.03009]
[1722335185692,0.449788,66698.0,66676.0,0.06745237]
[1722335185693,0.149988,66672.0,66657.0,0.09755652]
[1722335185920,0.449964,66672.0,66661.0,0.300022]
[1722335186120,0.591964,66672.0,66656.0,0.300046]
[1722335186334,0.591964,66672.0,66662.0,0.30002]
[1722335186335,0.61549898,66672.0,66662.0,0.30002]
[1722335186538,0.16553498,66672.0,66671.0,0.75062171]
[1722335186735,0.02353498,66672.0,66671.0,0.78071171]
[1722335187142,0.02353498,66672.0,66671.0,0.79471171]
[1722335187663,0.02353498,66672.0,66671.0,0.49473171]
[1722335187864,0.02353498,66672.0,66671.0,0.04476171]
[1722335188065,0.02353498,66672.0,66671.0,0.05676171]
[1722335188271,0.02353498,66672.0,66671.0,0.04276171]
[1722335188699,0.02453498,66672.0,66671.0,0.05376171]
[1722335188847,0.02453498,66672.0,66671.0,0.20375171]
[1722335190250,0.02453498,66672.0,66671.0,0.20466471]
[1722335190786,0.02453498,66672.0,66671.0,0.21413207]
[1722335191240,0.17452298,66672.0,66671.0,0.06414207]
[1722335191450,0.9420893,66672.0,66671.0,0.01051719]
[1722335191598,0.89464,66672.0,66671.0,0.00104983]
[1722335191800,1.194616,66672.0,66671.0,0.00104983]
[1722335192813,0.89464,66672.0,66671.0,0.00104983]
[1722335194400,0.594664,66672.0,66671.0,0.00104983]
[1722335195339,0.150988,66672.0,66671.0,0.00104983]
[1722335195533,0.001,66672.0,66671.0,0.00104983]
[1722335195842,0.001,66672.0,66671.0,0.01052394]
[1722335196753,0.00223472,66672.0,66671.0,0.01052394]
[1722335197084,0.001,66672.0,66671.0,0.01052394]
[1722335197223,0.00239347,66672.0,66671.0,0.01052394]
[1722335197434,0.001,66672.0,66671.0,0.01052394]
[1722335197835,0.00214363,66672.0,66671.0,0.01052394]
[1722335198082,0.001,66672.0,66671.0,0.01052394]
[1722335198707,0.150988,66672.0,66671.0,0.01052394]
[1722335199837,0.001,66672.0,66671.0,0.01052394]
[1722335200045,0.150988,66672.0,66671.0,0.01052394]
[1722335200222,0.001,66672.0,66671.0,0.16051394]
[1722335200427,0.001,66672.0,66671.0,0.46049394]
[1722335201219,0.02453517,66672.0,66671.0,0.16051394]
[1722335202149,0.02453517,66672.0,66671.0,0.46049394]
[1722335202489,0.02453517,66672.0,66671.0,1.1358011]
[1722335202490,0.001,66672.0,66671.0,1.1358011]
[1722335202625,0.001,66672.0,66671.0,1.06045394]
[1722335202844,0.001,66672.0,66671.0,1.12285394]
[1722335205502,0.001,66672.0,66671.0,1.35318698]
[1722335205704,0.02453321,66672.0,66671.0,1.35318698]
[1722335206776,0.001,66672.0,66671.0,1.35318698]
[1722335209604,0.001,66672.0,66671.0,1.7778258]
[1722335210136,0.02453214,66672.0,66671.0,1.7878258]
[1722335210335,0.001,66672.0,66671.0,1.8179158]
[1722335210964,0.001,66672.0,66671.0,1.8079158]
[1722335211244,0.001,66672.0,66671.0,1.8179158]
[1722335211663,0.002,66672.0,66671.0,1.8319158]
[1722335212310,0.001,66672.0,66671.0,1.83177897]
[1722335212739,0.002,66672.0,66671.0,1.72112015]
[1722335212940,0.002,66672.0,66671.0,1.84576771]
[1722335213285,0.002,66672.0,66671.0,1.8457676]
[1722335213493,0.002,66672.0,66671.0,2.1657476]
[1722335213696,0.002,66672.0,66671.0,2.50730366]
[1722335213901,0.02553076,66672.0,66671.0,2.454706]
[1722335214129,0.02553076,66672.0,66671.0,2.49957294]
[1722335214532,0.002,66672.0,66671.0,2.454706]
[1722335214735,0.002,66672.0,66671.0,2.79955294]
[1722335216167,0.002,66672.0,66671.0,2.79951373]
[1722335216372,0.002,66672.0,66671.0,2.75465126]
[1722335216751,0.002,66672.0,66671.0,2.79951406]
[1722335218533,0.002,66672.0,66671.0,2.75465126]
[1722335218746,0.002,66672.0,66671.0,2.79951309]
[1722335219371,0.002,66672.0,66671.0,2.79951336]
[1722335221824,0.002,66672.0,66671.0,2.75465235]
[1722335222051,0.002,66672.0,66671.0,1.93724903]
[1722335222255,0.002,66672.0,66671.0,1.39366903]
[1722335222467,0.00165966,66672.0,66671.0,1.39366903]
[1722335223924,0.00248966,66672.0,66671.0,1.49366903]
[1722335224883,0.00248966,66672.0,66671.0,1.36904015]
[1722335225064,0.00248966,66672.0,66671.0,1.49369365]
[1722335226662,0.02602108,66672.0,66671.0,1.49369365]
[1722335228339,0.02602108,66672.0,66671.0,1.49369052]
[1722335229063,0.00248966,66672.0,66671.0,1.49369052]
[1722335232003,0.00248966,66672.0,66671.0,1.49369054]
[1722335234615,0.00248966,66672.0,66671.0,1.36904015]
[1722335234815,0.00248966,66672.0,66671.0,1.49369054]
[1722335235016,0.00248966,66672.0,66671.0,1.55569054]
[1722335236118,0.00248966,66672.0,66671.0,1.49369054]
[1722335236821,0.02602075,66672.0,66671.0,1.79367054]
[1722335237022,0.00248966,66672.0,66671.0,1.79367054]
[1722335239660,0.00248966,66672.0,66671.0,2.10463335]
[1722335239854,0.00248966,66672.0,66671.0,2.55462207]
[1722335240066,0.00248966,66672.0,66671.0,2.48724149]
[1722335240315,0.00248966,66672.0,66671.0,2.87706226]
[1722335240457,0.02601899,66672.0,66671.0,2.87706226]
[1722335241262,0.02601899,66672.0,66671.0,1.82082015]
[1722335241534,0.02601899,66672.0,66671.0,2.55505178]
[1722335241890,0.02601899,66672.0,66671.0,2.87703474]
[1722335242086,0.02601899,66672.0,66671.0,2.57705474]
[1722335242287,0.00248966,66672.0,66671.0,2.55505474]
[1722335242489,0.00248966,66672.0,66671.0,2.87703474]
[1722335243117,0.00248966,66672.0,66671.0,2.55505474]
[1722335243300,0.00248966,66672.0,66671.0,2.57505474]
[1722335243499,0.00248966,66672.0,66671.0,2.57705474]
[1722335243701,0.00248966,66672.0,66671.0,2.57706647]
[1722335243922,0.00248966,66672.0,66671.0,2.54506647]
[1722335244125,0.00248966,66672.0,66671.0,2.18979886]
[1722335246247,0.02601961,66672.0,66671.0,2.17502183]
[1722335246648,0.02601961,66672.0,66671.0,2.21996562]
[1722335246850,0.02601961,66672.0,66671.0,2.19736959]
[1722335247051,0.02601961,66672.0,66671.0,2.55512721]
[1722335247419,0.02601961,66672.0,66671.0,2.46523962]
[1722335247620,0.02601961,66672.0,66671.0,2.55512721]
[1722335247813,0.02601961,66672.0,66671.0,2.57714201]
[1722335248263,0.02601961,66672.0,66671.0,2.87712201]
[1722335248640,0.02601961,66672.0,66671.0,2.8996026]
[1722335251213,0.02601961,66672.0,66671.0,2.5880148]
[1722335251427,0.02601961,66672.0,66671.0,2.89959493]
[1722335251634,0.02601961,66672.0,66671.0,1.82082015]
[1722335251834,0.02601961,66672.0,66671.0,2.46520432]
[1722335252216,0.02601961,66672.0,66671.0,2.87512938]
[1722335252377,0.02601961,66672.0,66671.0,2.85512938]
[1722335252581,0.02601961,66672.0,66671.0,2.87512938]
[1722335253591,0.02601961,66672.0,66671.0,2.87712938]
[1722335254337,0.1419,66688.0,66683.0,0.012]
[1722335254539,0.1419,66688.0,66687.0,1.079768]
[1722335254788,0.1419,66688.0,66687.0,1.65493611]
[1722335255119,0.1419,66688.0,66687.0,1.66433118]
[1722335256073,0.1429,66688.0,66687.0,1.67833118]
[1722335257321,0.1429,66688.0,66687.0,1.68933118]
[1722335257771,0.16642814,66688.0,66687.0,1.68932049]
[1722335257974,0.1429,66688.0,66687.0,1.69835938]
[1722335260463,0.1429,66688.0,66687.0,1.69138816]
[1722335261042,0.1429,66688.0,66687.0,1.56677178]
[1722335261248,0.1429,66688.0,66687.0,1.69138816]
[1722335261689,0.1429,66688.0,66687.0,1.69138806]
[1722335261893,0.1429,66688.0,66687.0,1.39148006]
[1722335263489,0.1429,66688.0,66687.0,1.26686378]
[1722335263692,0.1429,66688.0,66687.0,1.39148627]
[1722335264481,0.1429,66688.0,66687.0,1.39148616]
[1722335265334,0.16642788,66688.0,66687.0,1.39148616]
[1722335268817,0.16642788,66688.0,66687.0,0.93190623]
[1722335269121,0.61628388,66688.0,66687.0,0.03439507]
[1722335269295,0.61628388,66688.0,66687.0,0.06445507]
[1722335269702,0.61628388,66688.0,66687.0,0.05506]
[1722335270429,0.61628388,66688.0,66687.0,0.06443549]
[1722335271214,0.592756,66688.0,66687.0,0.06443549]
[1722335272463,0.89266,66688.0,66687.0,0.06443549]
[1722335272781,0.592756,66688.0,66687.0,0.05506]
[1722335273192,0.592756,66688.0,66687.0,0.06443549]
[1722335273948,0.592756,66688.0,66687.0,0.05506]
[1722335274175,0.1429,66688.0,66687.0,0.05506]
[1722335274378,0.16642898,66688.0,66687.0,0.05506]
[1722335274789,0.16798318,66688.0,66687.0,0.06443549]
[1722335277247,0.31638098,66688.0,66687.0,0.06443549]
[1722335277449,0.16642898,66688.0,66687.0,0.06443549]
[1722335277578,0.16798318,66688.0,66687.0,0.06443549]
[1722335278221,0.16642898,66688.0,66687.0,0.06443549]
[1722335278754,0.16798318,66688.0,66687.0,0.06443549]
[1722335278899,0.16642898,66688.0,66687.0,0.06443549]
[1722335279329,0.16798318,66688.0,66687.0,0.06443549]
[1722335279731,0.16642898,66688.0,66687.0,0.06443549]
[1722335280227,0.16798318,66688.0,66687.0,0.06443549]
[1722335280439,0.16798318,66688.0,66687.0,0.21438949]
[1722335280645,0.16642898,66688.0,66687.0,0.51429749]
[1722335281893,0.16642898,66688.0,66687.0,1.46472794]
[1722335281894,0.02452898,66688.0,66687.0,1.46472794]
[1722335282120,0.02452898,66688.0,66687.0,1.38938078]
[1722335282337,0.001,66688.0,66687.0,1.38938078]
[1722335283821,0.1419,66688.0,66687.0,0.06443549]
[1722335284156,0.591756,66688.0,66687.0,0.03437549]
[1722335284658,0.89166,66688.0,66687.0,0.025]
[1722335284865,0.591756,66688.0,66687.0,0.03441028]
[1722335285067,0.591756,66688.0,66687.0,0.025]
[1722335285505,0.89166,66688.0,66687.0,0.03441028]
[1722335285846,1.0186083,66688.0,66687.0,0.025]
[1722335286052,1.191564,66688.0,66687.0,0.025]
[1722335286263,0.89166,66688.0,66687.0,0.025]
[1722335286575,0.89166,66688.0,66687.0,0.014]
[1722335286788,0.149962,66684.0,66681.0,0.03006]
[1722335287050,0.442826,66683.0,66682.0,0.03006]
[1722335287278,0.442826,66683.0,66682.0,0.03947028]
[1722335287279,0.292864,66683.0,66682.0,0.03947028]
[1722335288451,0.31639413,66683.0,66682.0,0.03947028]
[1722335288651,0.16643013,66683.0,66682.0,0.03947028]
[1722335288945,0.16643013,66683.0,66682.0,0.48936628]
[1722335289156,0.0634,66686.0,66685.0,0.449875]
[1722335289976,0.0634,66686.0,66685.0,0.45931005]
[1722335290302,0.0634,66686.0,66685.0,0.46631005]
[1722335290503,0.0634,66686.0,66685.0,0.16639305]
[1722335290703,0.0634,66686.0,66685.0,0.17439305]
[1722335290914,0.0634,66686.0,66685.0,0.47431005]
[1722335291118,0.081,66687.0,66686.0,0.149956]
[1722335291311,0.081,66687.0,66685.0,0.02443505]
[1722335291312,0.081,66687.0,66685.0,0.015]
[1722335291595,0.0626,66687.0,66686.0,0.00943505]
[1722335292247,0.08612922,66687.0,66686.0,0.15939105]
[1722335292556,0.08612922,66687.0,66686.0,0.00943505]
[1722335292757,0.08612922,66687.0,66686.0,0.01543505]
[1722335293185,0.08612922,66687.0,66686.0,0.16539105]
[1722335293567,0.08612922,66687.0,66686.0,0.17239105]
[1722335295216,0.08735852,66687.0,66686.0,0.17239105]
[1722335295412,0.08735852,66687.0,66686.0,0.02243505]
[1722335295413,0.08612922,66687.0,66686.0,0.02243505]
[1722335295632,0.08612922,66687.0,66686.0,0.17239105]
[1722335295978,0.08739567,66687.0,66686.0,0.17239105]
[1722335296439,0.08612922,66687.0,66686.0,0.17239105]
[1722335296639,0.08612922,66687.0,66686.0,0.02243505]
[1722335296842,0.08612922,66687.0,66686.0,0.17239105]
[1722335296985,0.08612922,66687.0,66686.0,0.02243505]
[1722335297188,0.08612922,66687.0,66686.0,0.17239105]
[1722335297509,0.08612922,66687.0,66686.0,0.47230405]
[1722335297707,0.08612922,66687.0,66686.0,0.77221705]
[1722335297910,0.02352922,66687.0,66686.0,0.77221705]
[1722335298289,0.02352922,66687.0,66686.0,1.22276309]
[1722335298693,0.02352922,66687.0,66686.0,1.34740487]
[1722335299813,0.02352922,66687.0,66686.0,1.34739881]
[1722335302057,0.02352922,66687.0,66686.0,1.35640285]
[1722335302790,0.02352922,66687.0,66686.0,1.35620285]
[1722335303456,0.02352922,66687.0,66686.0,1.46466285]
[1722335303797,0.00083,66692.0,66691.0,1.049615]
[1722335303964,0.00083,66692.0,66691.0,1.17423792]
[1722335304178,0.00083,66692.0,66691.0,1.18363331]
[1722335306399,0.00083,66692.0,66691.0,1.1836293]
[1722335306934,0.02435704,66692.0,66691.0,1.1836293]
[1722335307141,0.02435704,66692.0,66691.0,1.1906293]
[1722335307545,0.02435704,66692.0,66691.0,1.1986293]
[1722335312217,0.02435704,66692.0,66691.0,1.3432293]
[1722335312994,0.02435704,66692.0,66691.0,1.21861039]
[1722335313193,0.02435704,66692.0,66691.0,1.34322898]
[1722335313647,0.02435704,66692.0,66691.0,1.34322897]
[1722335314004,0.02435704,66692.0,66691.0,1.27842897]
[1722335316351,0.02435704,66692.0,66691.0,1.15381039]
[1722335316553,0.02435704,66692.0,66691.0,1.27842897]
[1722335318354,0.00083,66692.0,66691.0,1.27842897]
[1722335321546,0.02435699,66692.0,66691.0,1.27842897]
[1722335322533,0.02435699,66692.0,66691.0,1.72895201]
[1722335322901,0.00083,66692.0,66691.0,2.12440201]
[1722335323107,0.00083,66692.0,66691.0,1.98707268]
[1722335323256,0.00083,66692.0,66691.0,2.16397412]
[1722335323456,0.00083,66692.0,66691.0,2.15633241]
[1722335323656,0.00083,66692.0,66691.0,1.84482041]
[1722335323863,0.00083,66692.0,66691.0,2.14131569]
[1722335324202,0.00083,66692.0,66691.0,2.15596584]
[1722335324485,0.00083,66692.0,66691.0,2.16996584]
[1722335324859,0.00083,66692.0,66691.0,2.1629772]
[1722335325061,0.00083,66692.0,66691.0,2.1769772]
[1722335325421,0.00083,66692.0,66691.0,2.1869772]
[1722335325625,0.02435495,66692.0,66691.0,2.18697689]
[1722335325835,0.02435495,66692.0,66691.0,2.20697689]
[1722335326037,0.00083,66692.0,66691.0,2.45428841]
[1722335326236,0.00083,66692.0,66691.0,2.50119468]
[1722335326462,0.00083,66692.0,66691.0,2.14478343]
[1722335326779,0.00083,66692.0,66691.0,2.45626805]
[1722335327067,0.00083,66692.0,66691.0,2.50962671]
[1722335327270,0.00083,66692.0,66691.0,2.42826805]
[1722335327499,0.00083,66692.0,66691.0,2.42626805]
[1722335327645,0.00083,66692.0,66691.0,2.45626805]
[1722335327846,0.00083,66692.0,66691.0,2.43426805]
[1722335328049,0.00083,66692.0,66691.0,2.13437805]
[1722335329258,0.00083,66692.0,66691.0,2.45426805]
[1722335329259,0.02435464,66692.0,66691.0,2.45426805]
[1722335329437,0.02435464,66692.0,66691.0,2.45626805]
[1722335329639,0.00083,66692.0,66691.0,2.50116482]
[1722335329837,0.00083,66692.0,66691.0,2.50114794]
[1722335330263,0.38077443,66704.0,66691.0,2.50114794]
[1722335330264,0.38077443,66704.0,66703.0,1.523922]
[1722335330467,0.00083,66708.0,66705.0,0.779627]
[1722335330686,0.00083,66708.0,66705.0,1.05485228]
[1722335331112,0.00083,66708.0,66705.0,1.6637682]
[1722335331517,0.00083,66708.0,66705.0,1.7408682]
[1722335332062,0.00083,66708.0,66705.0,1.7538682]
[1722335332580,0.04168112,66706.0,66705.0,1.7538682]
[1722335332786,0.04168112,66706.0,66705.0,1.82905629]
[1722335332992,0.04168112,66706.0,66705.0,1.89475629]
[1722335333193,0.04168112,66706.0,66705.0,1.89475603]
[1722335333555,0.04168112,66706.0,66705.0,1.99475603]
[1722335333751,0.04168112,66706.0,66705.0,1.99475351]
[1722335333951,0.04168112,66706.0,66705.0,2.00404276]
[1722335334150,0.04168112,66706.0,66705.0,2.01404276]
[1722335334151,0.01816,66706.0,66705.0,2.01404276]
[1722335334527,0.01816,66706.0,66705.0,2.32486976]
[1722335335669,0.01816,66706.0,66705.0,2.02504276]
[1722335335881,0.01816,66706.0,66705.0,1.94794276]
[1722335336357,0.01816,66706.0,66705.0,2.02504276]
[1722335336662,0.01816,66706.0,66705.0,2.02504425]
[1722335337435,0.0416789,66706.0,66705.0,2.02504425]
[1722335337818,0.01816,66706.0,66705.0,2.02504425]
[1722335341012,0.04167886,66706.0,66705.0,2.01504425]
[1722335342143,0.04167886,66706.0,66705.0,1.87414425]
[1722335342348,0.04167886,66706.0,66705.0,1.87414954]
[1722335345481,0.04167886,66706.0,66705.0,1.87414222]
[1722335346288,0.04167886,66706.0,66705.0,1.95294222]
[1722335346524,0.04167886,66706.0,66705.0,2.01624222]
[1722335348721,0.04167886,66706.0,66705.0,2.01624282]
[1722335350636,0.01816,66706.0,66705.0,2.01624282]
[1722335350868,0.01816,66706.0,66705.0,1.95294282]
[1722335351069,0.01816,66706.0,66705.0,1.87414282]
[1722335352224,0.01816,66706.0,66705.0,1.8741493]
[1722335353230,0.01816,66706.0,66705.0,1.7970493]
[1722335353423,0.01816,66706.0,66705.0,1.8741493]
[1722335354109,0.04167908,66706.0,66705.0,1.8741493]
[1722335355319,0.04167908,66706.0,66705.0,1.74956521]
[1722335355520,0.04167908,66706.0,66705.0,1.87414692]
[1722335356236,0.04167908,66706.0,66705.0,2.11359013]
[1722335356585,0.04167908,66706.0,66705.0,2.11358887]
[1722335356792,0.04167908,66706.0,66705.0,1.87414692]
[1722335357652,0.04167908,66706.0,66705.0,2.06101664]
[1722335358830,0.04167908,66706.0,66705.0,2.06101011]
[1722335361545,0.04167908,66706.0,66705.0,2.06580722]
[1722335363596,0.04167908,66706.0,66705.0,1.98870722]
[1722335363963,0.04167908,66706.0,66705.0,2.06580722]
[1722335364435,0.01816,66706.0,66705.0,1.98870722]
[1722335364645,0.07846,66706.0,66705.0,2.06580722]
[1722335365188,0.01816,66706.0,66705.0,2.06580722]
[1722335365403,0.01816,66706.0,66705.0,2.065823]
[1722335367466,0.0416789,66706.0,66705.0,2.11839432]